Cogmind - Beta 14 @@@ ROGUE MODE // 2024.12.07 @ 19:49:28 Player: K4-9ML(Z) Result: Destroyed by H-66 Slayer with Heavy Assault Rifle Performance ------------- Evolutions (4) 2000 Regions Visited (5) 1000 Robots Destroyed (21) 105 Value Destroyed (682) 682 Prototype IDs (2) 40 Alien Tech Used (0) 0 Bonus (0) 0 TOTAL SCORE: 3827 Bonus ------- None Cogmind --------- Core Integrity 0/850 Matter 300/300 Energy 98/100 System Corruption 0% Temperature Cool (0) Movement Core (50) Location -6/Factory Parts ------- > --- POWER (1) -------- (None) > --- PROPULSION (4) --- (None) > --- UTILITY (5) ------ (None) > --- WEAPON (5) ------- (None) > --- INVENTORY (5) ---- Advanced ECM Suite Peak State ------------ > --- POWER ------------ Light Deuterium Engine > --- PROPULSION ------- Light Treads Light Treads > --- UTILITY ---------- Small Storage Unit Improved Signal Interpreter Medium Armor Plating > --- WEAPON ----------- Plasma Cannon Plasma Cannon Heavy Ion Cannon Heavy Ion Cannon > --- INVENTORY -------- Light Ion Engine Aluminum Leg Aluminum Leg Wheel Grenade Launcher Improved Datajack [Rating: 27] Favorites ----------- Power Light Nuclear Core Engine Light Ion Engine Power Core Light Nuclear Core Propulsion Light Treads Treads Light Treads Leg Improved Titanium Leg Wheel Wheel Hover Unit Cooled Airjet Flight Unit Improved VTOL Module Utility Small Storage Unit Device System Restoration Module Storage Small Storage Unit Processor Improved Signal Interpreter Protection Light Armor Plating Weapon Medium Laser Energy Gun Medium Laser Energy Cannon Beam Cannon Ballistic Gun Assault Rifle Launcher Grenade Launcher Special Melee Weapon Improved Datajack Build | -11 -10 -9 -8 -7 -6 ------- Run | Yrd Mat Mat Mat Fac Fac Slots Evolved 8 | . . 2 2 2 2 Power . | . . . . . . Propulsion 2 | . . . . 1 1 Utility 3 | . . 1 1 1 . Weapon 3 | . . 1 1 . 1 Parts Attached 40 | 6 1 7 18 8 . Power 4 | 1 . 1 2 . . Engine 3 | 1 . . 2 . . Core 1 | . . 1 . . . Reactor . | . . . . . . Propulsion 11 | 2 . . 5 4 . Treads 2 | 2 . . . . . Leg 6 | . . . 4 2 . Wheel 1 | . . . 1 . . Hover 1 | . . . . 1 . Flight 1 | . . . . 1 . Utility 10 | 1 . 5 1 3 . Device 2 | . . . . 2 . Storage 2 | 1 . 1 . . . Processor 3 | . . 2 1 . . Hackware . | . . . . . . Protection 3 | . . 2 . 1 . Artifact . | . . . . . . Weapon 15 | 2 1 1 10 1 . Energy Gun 3 | 1 . 1 1 . . Energy Cannon 8 | . 1 . 6 1 . Ballistic Gun 1 | 1 . . . . . Ballistic Cannon . | . . . . . . Launcher 2 | . . . 2 . . Special Weapon . | . . . . . . Impact Weapon . | . . . . . . Slashing Weapon . | . . . . . . Piercing Weapon . | . . . . . . Special Melee Weapon 1 | . . . 1 . . Unidentified Prototypes 2 | . . . . 2 . Parts Lost 14 | . . . 8 6 . Power 1 | . . . 1 . . Propulsion 4 | . . . 2 2 . Utility 4 | . . . 1 3 . Weapon 5 | . . . 4 1 . Highest Loss Streak 6 | . . . 5 6 . To Critical Strikes . | . . . . . . Average Slot Usage (%) 65 | . 85 97 77 34 4 Engine 3 | . 14 . 8 . . Core 2 | . . 10 . . . Treads 11 | . 28 22 10 . . Leg 3 | . . . 6 6 . Device 3 | . . . . 10 . Storage 8 | . 14 16 9 1 . Processor 6 | . . 5 9 7 4 Protection 5 | . . 9 6 4 . Energy Gun 8 | . 14 21 6 . . Energy Cannon 9 | . 6 11 19 2 . Peak Build Rating 27 | 6 6 15 27 27 3 Average Rating 13 | 4 6 12 18 16 2 On Entrance 6 | . 6 6 13 5 8 Naked Turns 42 | . . . . . 42 Heaviest Build 47 | 12 13 25 47 20 . Greatest Support 40 | 40 40 40 40 40 3 Greatest Overweight (x) 12 | 2 . . 12 3 . Average Overweight (x) . | . . . . . . Largest Inventory Capacity 8 | 8 8 8 8 8 5 Average Capacity 6 | 6 8 8 8 5 5 Most Carried 8 | 4 6 8 7 2 1 Average Carried 3 | 2 4 6 4 . 1 Final Capacity 8 | 8 8 8 8 5 5 Final Carried 7 | 4 6 7 . 1 1 Class Distribution -------------------- 62% | Mutant 34% | Tank Dominant Class ---------------- Mutant | -10/Materials Tank | -9/Materials Mutant | -8/Materials Mutant | -7/Factory Mutant | -6/Factory Resources | -11 -10 -9 -8 -7 -6 ----------- Run | Yrd Mat Mat Mat Fac Fac Matter Collected 512 | 192 . 150 170 . . Remotely . | . . . . . . Salvage Created 777 | . 61 285 431 . . Parts 43 | . 8 20 15 . . Haulers Intercepted . | . . . . . . Recyclers Shooed . | . . . . . . Parts Field Recycled . | . . . . . . Retrieved Matter . | . . . . . . Parts Self-Destructed . | . . . . . . Prevented . | . . . . . . Kills | -11 -10 -9 -8 -7 -6 ------- Run | Yrd Mat Mat Mat Fac Fac Combat Hostiles Destroyed 13 | . . 3 10 . . Guns 4 | . . 3 1 . . Cannons 6 | . . . 6 . . AOE 3 | . . . 3 . . Classes Destroyed 7 | . 2 3 2 . . Worker 2 | . 1 . 1 . . Builder 1 | . . . 1 . . Recycler 1 | . . 1 . . . Watcher 4 | . 2 2 . . . Grunt 9 | . . . 9 . . Brawler 2 | . . 1 1 . . Sentry 2 | . . 2 . . . Best Kill Streak 5 | . 3 2 5 . . Combat Bots Only 3 | . . 1 3 . . Max Kills in Single Turn 4 | . 1 1 4 . . Gunslinging . | . . . . . . Exploded 1 | . . . 1 . . Melee . | . . . . . . Uniques/NPCs Destroyed . | . . . . . . Combat | -11 -10 -9 -8 -7 -6 -------- Run | Yrd Mat Mat Mat Fac Fac Hostile Shots Fired 454 | . . 7 137 242 68 Missed 148 | . . 3 45 84 16 Damage Taken 3577 | . . 47 1267 1412 851 Core 1914 | . . . 527 536 851 Absorbed by Shields 22 | . . . . 22 . Core Remaining (%) 65 | 100 100 100 4 23 . Volleys Fired 48 | . 4 14 26 4 . Largest 4 | . 2 3 4 1 . Hottest 290 | . 70 175 290 65 . Shots Fired 117 | . 8 41 64 4 . Gun 46 | . 8 27 11 . . Cannon 64 | . . 14 46 4 . Launcher 7 | . . . 7 . . Special . | . . . . . . Kinetic 4 | . 4 . . . . Thermal 106 | . 4 41 57 4 . Explosive 7 | . . . 7 . . Electromagnetic . | . . . . . . Robot Hit Streak 9 | . 2 6 9 6 . Robot Miss Streak 4 | . 2 2 4 . . Penetration Max . | . . . . . . Secondary Targets . | . . . . . . Shots Hit Robots 67 | . 3 23 37 4 . Core Hits 36 | . 3 9 21 3 . Critical Kills . | . . . . . . Critical Parts Destroyed . | . . . . . . Critical Strikes 1 | . . 1 . . . Burn 1 | . . 1 . . . Melee Attacks 1 | . . . 1 . . Impact . | . . . . . . Slashing . | . . . . . . Piercing . | . . . . . . Sneak Attacks . | . . . . . . Combat Hostiles . | . . . . . . Follow-up Attacks . | . . . . . . Damage Inflicted 1832 | . 64 342 1248 171 7 Guns 453 | . 64 236 153 . . Cannons 816 | . . 106 600 110 . Explosions 495 | . . . 495 . . Melee . | . . . . . . Ramming 68 | . . . . 61 7 Kinetic 13 | . 13 . . . . Thermal 1256 | . 51 342 753 110 . Explosive 495 | . . . 495 . . Electromagnetic . | . . . . . . Impact . | . . . . . . Slashing . | . . . . . . Piercing . | . . . . . . Highest Corruption . | . . . . . . Average Corruption . | . . . . . . Corruption Purged . | . . . . . . Corruption Blocked . | . . . . . . Overload Shots . | . . . . . . Overflow Damage 6 | . . . 6 . . Projectiles . | . . . . . . Explosions 6 | . . . 6 . . Melee . | . . . . . . Knockbacks . | . . . . . . Impact . | . . . . . . Kinetic . | . . . . . . Secondary . | . . . . . . Self-Inflicted Damage 105 | . . . 102 . 3 Shots 3 | . . . 3 . . Rammed 5 | . . . . 1 4 Targets Rammed 38 | . . . . 34 4 Kicked 33 | . . . . 33 . Crushed . | . . . . . . Highest Temperature 724 | . 18 463 724 19 . Average Temperature 209 | . 10 157 267 10 . Received Heat Transfer 900 | . . 9 297 486 108 Effects 29 | . . 3 26 . . Shutdowns 9 | . . 2 7 . . Energy Bleed 2 | . . . 2 . . Interference 5 | . . . 5 . . Matter Decay 1 | . . . 1 . . Short Circuit 4 | . . . 4 . . Damage (minor) 3 | . . 1 2 . . Damage (major) 3 | . . . 3 . . Damage (core) 2 | . . . 2 . . Siege Activations . | . . . . . . Robots Corrupted . | . . . . . . Combat Hostiles . | . . . . . . Parts Fried . | . . . . . . Impact Corruptions . | . . . . . . Robots Melted . | . . . . . . Combat Hostiles . | . . . . . . Parts Melted 7 | . . 4 3 . . Heat Transferred 2598 | . 148 925 1377 148 . Parts Sabotaged . | . . . . . . Parts Stolen . | . . . . . . Parts Stripped . | . . . . . . Power Chain Reactions . | . . . . . . Alert | -11 -10 -9 -8 -7 -6 ------- Run | Yrd Mat Mat Mat Fac Fac Peak Influence 296 | . 19 131 296 169 223 Initial 73 | . . 7 18 34 73 Average 75 | . 9 57 105 89 115 Maximum Alert Level 1 | . . . 1 . 1 Low Security (%) 93 | 100 100 100 75 100 96 Level 1 6 | . . . 24 . 3 Level 2 . | . . . . . . Level 3 . | . . . . . . Level 4 . | . . . . . . Level 5 . | . . . . . . High Security . | . . . . . . Max Security . | . . . . . . Squads Dispatched 5 | . . . 1 3 1 Investigation 1 | . . . . . 1 Extermination 1 | . . . . 1 . Reinforcement 3 | . . . 1 2 . Assault . | . . . . . . Garrison . | . . . . . . Intercept . | . . . . . . Searches Triggered . | . . . . . . Construction Impeded 1 | . . . 1 . . Haulers Reinforced . | . . . . . . Active Scanning Responses . | . . . . . . Cargo Convoy Interrupts . | . . . . . . Stealth | -11 -10 -9 -8 -7 -6 --------- Run | Yrd Mat Mat Mat Fac Fac Distress Signals 2 | . . . . 2 . Communications Jammed . | . . . . . . Distress Signals . | . . . . . . Times Spotted 72 | . 2 10 24 23 13 Peak Tracking Total 10 | . 2 3 9 10 8 Tactical Retreats 10 | . . 1 1 4 4 Traps | -11 -10 -9 -8 -7 -6 ------- Run | Yrd Mat Mat Mat Fac Fac Traps Triggered . | . . . . . . Indirectly . | . . . . . . Trap Hack Attempts . | . . . . . . Triggered . | . . . . . . Disarmed . | . . . . . . Reprogrammed . | . . . . . . Reused . | . . . . . . Traps Extracted . | . . . . . . Installed . | . . . . . . Triggered . | . . . . . . Machines | -11 -10 -9 -8 -7 -6 ---------- Run | Yrd Mat Mat Mat Fac Fac Machines Disabled 2 | . . . 2 . . Max in Single Turn 1 | . . . 1 . . Machines Repaired . | . . . . . . Machines Dismantled . | . . . . . . Machines Sabotaged . | . . . . . . Overloaded Fab Kills . | . . . . . . Hacking | -11 -10 -9 -8 -7 -6 --------- Run | Yrd Mat Mat Mat Fac Fac Machines Accessed 1 | . . . . . 1 Terminals . | . . . . . . Fabricators . | . . . . . . Repair Stations . | . . . . . . Recycling Units . | . . . . . . Scanalyzers . | . . . . . . Garrison Access 1 | . . . . . 1 Total Hacks 3 | . . . . . 3 Successful . | . . . . . . Failed 3 | . . . . . 3 Catastrophic . | . . . . . . Database Lockouts . | . . . . . . Manual . | . . . . . . Terminals . | . . . . . . Fabricators . | . . . . . . Repair Stations . | . . . . . . Recycling Units . | . . . . . . Scanalyzers . | . . . . . . Garrison Access 3 | . . . . . 3 Terminal Hacks . | . . . . . . Fabricator Hacks . | . . . . . . Repair Station Hacks . | . . . . . . Recycling Unit Hacks . | . . . . . . Scanalyzer . | . . . . . . Garrison Access Hacks . | . . . . . . Unauthorized Hacks . | . . . . . . Terminals . | . . . . . . Fabricators . | . . . . . . Repair Stations . | . . . . . . Recycling Units . | . . . . . . Scanalyzers . | . . . . . . Garrison Access . | . . . . . . Data Cores Recovered . | . . . . . . Used . | . . . . . . Hacking Detections 1 | . . . . . 1 Full Trace Events 1 | . . . . . 1 Feedback Events . | . . . . . . Feedback Blocked . | . . . . . . Robot Schematics Acquired . | . . . . . . Robots Built . | . . . . . . Authchips . | . . . . . . Time . | . . . . . . Total Robot Build Rating . | . . . . . . Part Schematics Acquired . | . . . . . . Parts Built . | . . . . . . Authchips . | . . . . . . Time . | . . . . . . Total Part Build Rating . | . . . . . . Parts Repaired . | . . . . . . Time . | . . . . . . Parts Recycled . | . . . . . . Recycled Matter . | . . . . . . Retrieved Matter . | . . . . . . Retrieved Components . | . . . . . . Parts Scanalyzed . | . . . . . . Part Schematics Acquired . | . . . . . . Parts Damaged . | . . . . . . Bothacking | -11 -10 -9 -8 -7 -6 ------------ Run | Yrd Mat Mat Mat Fac Fac Used RIF Installer . | . . . . . . Robots Hacked 1 | . . . 1 . . Non-combat . | . . . . . . Combat 1 | . . . 1 . . Robot Hacks Applied 1 | . . . 1 . . parse_system 1 | . . . 1 . . Relay Couplers Released . | . . . . . . Fabnet Peak Effective % . | . . . . . . Robots Rewired . | . . . . . . Allies Hacked . | . . . . . . Hacks Repelled . | . . . . . . Allies | -11 -10 -9 -8 -7 -6 -------- Run | Yrd Mat Mat Mat Fac Fac Total Allies . | . . . . . . Largest Group . | . . . . . . Highest-Rated Group . | . . . . . . Highest-Rated Ally . | . . . . . . Total Orders . | . . . . . . Ally Attacks . | . . . . . . Total Damage . | . . . . . . Kills . | . . . . . . Allies Corrupted . | . . . . . . Allies Melted . | . . . . . . Intel | -11 -10 -9 -8 -7 -6 ------- Run | Yrd Mat Mat Mat Fac Fac Robot Analysis Total . | . . . . . . Derelict Logs Recovered . | . . . . . . Drone Launches . | . . . . . . Drone Recoveries . | . . . . . . Exploration | -11 -10 -9 -8 -7 -6 ------------- Run | Yrd Mat Mat Mat Fac Fac Turns Passed 1979 | 89 198 509 474 566 143 Spaces Moved 1484 | 53 114 279 215 547 276 Core 366 | 19 . . 3 68 276 Treads 534 | 34 114 279 107 . . Legs 271 | . . . 76 195 . Wheels 29 | . . . 29 . . Hover 146 | . . . . 146 . Flight 138 | . . . . 138 . Fastest Speed 35 | 50 160 160 80 35 50 Average Speed 111 | 139 160 160 165 84 50 Slowest Speed 650 | 160 160 160 650 200 50 Overloaded Moves . | . . . . . . Propulsion Burnouts . | . . . . . . Robots Hopped 1 | . . . . 1 . Cave-ins Triggered . | . . . . . . Exploration Rate (%) 18 | 4 28 28 27 15 10 Regions Visited 5 Branch Regions . Pre-discovered Areas . | . . . . . . Known Exits Taken 3 | . . 1 1 1 . Unknown Exits Taken 2 | 1 1 . . . . Scrap Searched . | . . . . . . Spaces Dug . | . . . . . . Terrain Destroyed 31 | . . . 31 . . Melee . | . . . . . . Projectile 14 | . . . 14 . . AOE 17 | . . . 17 . . Terrain Rammed . | . . . . . . Walls Destroyed . | . . . . . . Machines Disabled . | . . . . . . Actions | -11 -10 -9 -8 -7 -6 --------- Run | Yrd Mat Mat Mat Fac Fac Total 1710 | 68 122 313 291 634 282 Wait 40 | . . . 9 31 . Move 1477 | 52 113 278 214 544 276 Hop 1 | . . . . 1 . Pick Up 38 | 10 3 9 7 9 . Fast Attach . | . . . . . . Attach 40 | 6 1 7 18 8 . Detach 4 | . . . 4 . . Swap . | . . . . . . Drop 23 | . 1 5 12 3 2 Fire 48 | . 4 14 26 4 . Melee 1 | . . . 1 . . Ram 5 | . . . . 1 4 Kick 33 | . . . . 33 . Crush . | . . . . . . Escape Stasis . | . . . . . . Rewire . | . . . . . . Trap . | . . . . . . Miscellaneous . | . . . . . . Route ------- -11/Scrapyard -10/Materials -9/Materials -8/Materials -7/Factory (discovered 2 exits: *Fac x2) -6/Factory History --------- Turn | Location | Event 20 | -11/Scrapyard | Discovered new exit (range 15) 90 | -11/Scrapyard | Entered Materials 278 | -10/Materials | Discovered new exit (range 4) 288 | -10/Materials | Entered another Materials area 288 | -9/Materials | Evolved 2 slots: Utility x1, Weapon x1 652 | -9/Materials | Build established: Tank 794 | -9/Materials | Discovered new exit (range 3) 795 | -9/Materials | Identified exit to Materials 797 | -9/Materials | Entered another Materials area 797 | -8/Materials | Evolved 2 slots: Utility x1, Weapon x1 1206 | -8/Materials | Core integrity fell below 50% 1248 | -8/Materials | Core integrity fell below 20% 1261 | -8/Materials | Discovered new exit (range 7) 1270 | -8/Materials | Identified exit to Factory 1271 | -8/Materials | Entered Factory 1271 | -7/Factory | Evolved 2 slots: Propulsion x1, Utility x1 1288 | -7/Factory | Lost 5 parts (1p2n2w) 1324 | -7/Factory | Build established: Mutant 1395 | -7/Factory | Discovered new exit (range 10) 1399 | -7/Factory | Identified exit to Factory 1752 | -7/Factory | Core integrity fell below 50% 1782 | -7/Factory | Lost 6 parts (2n3u1w) 1830 | -7/Factory | Discovered exit to Factory (range 13) 1837 | -7/Factory | Entered another Factory area 1837 | -6/Factory | Evolved 2 slots: Propulsion x1, Weapon x1 1947 | -6/Factory | Core integrity fell below 50% 1977 | -6/Factory | Core integrity fell below 20% 1980 | -6/Factory | Destroyed by H-66 Slayer with Heavy Assault Rifle Last Messages --------------- GOAL=ESCAPE 01837_ Dropped Cld. Airjet. 01861_ Connecting with Garrison Access... 01861_ ALERT: Suspicious activity at Garrison Access F002. Dispatching Investigation squad. 01874_ ALERT: All DSF locations entering lockdown mode. 01904_ K-01 Serf pushes S-27 Virus. 01904_ K-01 Serf latches onto G-50 Soldier. 01904_ K-01 Serf pushes G-50 Soldier. 01908_ K-01 Serf cleans the DSF Access. 01925_ Slammed into T-07 Excavator. 01925_ Imp. Signal Interpreter broken. 01925_ Destabilizing: Short circuit. 01938_ Discarded Broken Imp. Signal Interpreter. 01939_ Slammed into S-27 Virus. 01951_ K-01 Serf cleans the DSF Access. 01973_ Penetrated by Slug. 01974_ Slug penetrates Wall. 01976_ Penetrated by Slug. Map ----- +----------------------------------------------------+ | # #??????????????????????????????????? | | + #??????????????????????????????????? | | # #??????????????????????????????????? | | # #??????????????????????????????????? | | # #??????????????????????????????????? | | ##############??????????????????????????????????? | | T#??????????????????????????????????????????????? | | #??????????????????????????????????????????????? | | ##??????????????????????????????????????????????? | | #???????????????????????????????????????????????? | | # ??????????????????????????????????????????????? | | # ??????????????????????????????????????????????? | | # ??????????????????????????????????????????????? | | # ??????????????????????????????????????????????? | | # ?????????????????????????????????????????????? | | # ?????????????????????????????????????????????? | | # ????"???????????????????????????? ???????????? | | # """ "??????????????????????????? ???????????? | | # ?????????????????????????? ??????????? | | # """ ????????????????????????? ??????????? | | # """????????????????????????? ???????????? | | # """??????????????????????? ?????????????? | | #? ??????????????????????? #???????????????? | | #? ??????????????####+### #???????????????? | | ###+################ #???????????????? | | @ +???????????????? | | / #???????????????? | | """"" #???????????????? | | h""""" #???????????????? | | """ #???????????????? | | ####+################h R #???????????????? | | ????????????????????# """ A ???????????????? | | ????????????????????# """ ????????????????? | | ????????????????????# """ ?????????????????? | | ????????????????????#R ?????????????????????? | | ????????????????????# ?????????????????????? | | ????????????????????# ##?????????????????????? | | ????????????????????# #??????????????????????? | | ???????????????????? #??????????????????????? | | ???????????????????? +??????????????????????? | | ????????????????????? ???????????????????????? | | ?????????????????????????????????????????????????? | | ?????????????????????????????????????????????????? | | ?????????????????????????????????????????????????? | | ?????????????????????????????????????????????????? | | ?????????????????????????????????????????????????? | | ?????????????????????????????????????????????????? | | ?????????????????????????????????????????????????? | | ?????????????????????????????????????????????????? | | ?????????????????????????????????????????????????? | +----------------------------------------------------+ Best States ------------- Heat Dissipation 37 Energy Generation 14 Energy Capacity 360 Matter Stores 300 Matter Capacity 300 Sight Range 18 Terrain Scan Density 10 Armor Coverage 225 Evasion (%) 63 Recoil Reduction 2 Item Schematics ----------------- None Robot Schematics ------------------ None Fabricated ------------ Nothing Alien Tech Used ----------------- None Achievements -------------- Close Call Challenges ------------ None Game ------ Seed TowerDrainedKatana Manual? 0 Play Time 00:28:54 Cumulative 7.9 hours Start 2024.12.07 @ 18:42:20 End 2024.12.07 @ 19:49:28 Sessions 2 Manual Loads 0 Difficulty Rogue Special Mode None Game No. 31 Rogue 30 Adventurer 1 Explorer 0 Win Type - Total 0 Types 0/0/0/0/0/0/0/0/0 Lore% 4 Gallery% 13 Achievement% 15 Wizard Run 0 Options --------- Layout 1 ASCII 0 Keyboard 0 Movement Mouse Keybinds 0 Fullscreen 1 Font 24/Smallcaps Map View 50x35 Zoom Use 0% Tactical HUD 1 Map Filters NONE Filters NONE Steam 1 RUN: 2151cc8f-bbb1-40e9-ba7a-f7b055b066f9